bitfinex/quotes_BTCUSD_20250727
["timestamp","ask_amount","ask_price","bid_price","bid_amount"]
[1753637469184,0.09540373,119420.0,119410.0,0.19261281]
[1753637469405,0.07865662,119420.0,119410.0,0.19261281]
[1753637469629,0.08703014,119420.0,119410.0,0.19261281]
[1753637470059,0.0954038,119420.0,119410.0,0.19261281]
[1753637470277,0.08703014,119420.0,119410.0,0.19261281]
[1753637470571,0.04914795,119410.0,119400.0,0.1926288]
[1753637470806,0.06201,119410.0,119400.0,0.1926288]
[1753637471013,0.07875781,119410.0,119400.0,0.1926288]
[1753637471203,0.08713182,119410.0,119400.0,0.1926288]
[1753637471685,0.07875781,119410.0,119400.0,0.1926288]
[1753637471900,0.08713182,119410.0,119400.0,0.1926288]
[1753637472339,0.07875781,119410.0,119400.0,0.1926288]
[1753637472658,0.07038387,119410.0,119400.0,0.1926288]
[1753637472883,0.06201,119410.0,119400.0,0.1926288]
[1753637474567,0.06201,119410.0,119400.0,0.50667268]
[1753637476727,0.07038394,119410.0,119400.0,0.50667268]
[1753637476944,0.06201,119410.0,119400.0,0.1926288]
[1753637481287,0.06201,119410.0,119400.0,0.50667268]
[1753637482670,0.06201,119410.0,119400.0,0.53063268]
[1753637482890,0.05899,119410.0,119400.0,0.53063268]
[1753637483506,0.03438,119410.0,119400.0,0.53063268]
[1753637483752,0.03438,119410.0,119400.0,0.53265268]
[1753637487112,0.05924,119410.0,119400.0,0.53265268]
[1753637488007,0.03438,119410.0,119400.0,0.53265268]
[1753637488865,0.03438,119410.0,119400.0,0.54021045]
[1753637489303,0.03438,119410.0,119400.0,0.53819045]
[1753637489516,0.05924,119410.0,119400.0,0.53819045]
[1753637490030,0.03438,119410.0,119400.0,0.53819045]
[1753637490879,0.03438,119410.0,119400.0,0.54023045]
[1753637491095,0.03438,119410.0,119400.0,0.54316045]
[1753637492592,0.040606,119410.0,119400.0,0.2215588]
[1753637492792,0.068546,119410.0,119400.0,0.1926288]
[1753637493018,0.07691987,119410.0,119400.0,0.51423045]
[1753637493862,0.068546,119410.0,119400.0,0.51423045]
[1753637494096,0.00837464,119400.0,119390.0,0.1842696]
[1753637494319,0.09569877,119400.0,119390.0,0.20102101]
[1753637494560,0.13192543,119400.0,119390.0,0.18426996]
[1753637494773,0.30763704,119400.0,119390.0,0.18426996]
[1753637494997,0.2992624,119400.0,119390.0,0.51424738]
[1753637495223,0.12338309,119400.0,119390.0,0.53299821]
[1753637495442,0.11517622,119400.0,119390.0,0.53399821]
[1753637495653,0.07894956,119400.0,119390.0,0.53399821]
[1753637495901,0.07894956,119400.0,119390.0,0.55685821]
[1753637496117,0.07586956,119400.0,119390.0,0.55685821]
[1753637497181,0.08424448,119400.0,119390.0,0.55685821]
[1753637497397,0.08732448,119400.0,119390.0,0.53399821]
[1753637497608,0.12271372,119400.0,119390.0,0.53399821]
[1753637498036,0.13108878,119400.0,119390.0,0.53399821]
[1753637498486,0.12271372,119400.0,119390.0,0.53399821]
[1753637498706,0.13108878,119400.0,119390.0,0.53399821]
[1753637498931,0.29859345,119400.0,119390.0,0.51724717]
[1753637499152,0.36632098,119400.0,119390.0,0.003]
[1753637499362,0.36632098,119400.0,119390.0,0.17889398]
[1753637499584,0.36632098,119400.0,119390.0,0.17889412]
[1753637499813,0.36632098,119400.0,119390.0,0.50049577]
[1753637500039,0.36632098,119400.0,119390.0,0.51724731]
[1753637500293,0.19044139,119400.0,119390.0,0.52562294]
[1753637500515,0.19881603,119400.0,119390.0,0.52562294]
[1753637500724,0.19881589,119400.0,119390.0,0.50887161]
[1753637500930,0.21556566,119400.0,119390.0,0.50887161]
[1753637501134,0.21556566,119400.0,119390.0,0.52562265]
[1753637501342,0.19881589,119400.0,119390.0,0.52562265]
[1753637501769,0.15505194,119400.0,119390.0,0.52562265]
[1753637501978,0.1466773,119400.0,119390.0,0.52562265]
[1753637502194,0.03426,119400.0,119390.0,0.55052265]
[1753637502402,0.016,119410.0,119400.0,0.19262894]
[1753637502616,0.39696,119420.0,119410.0,0.19261281]
[1753637502833,0.37416,119420.0,119410.0,0.53707446]
[1753637503041,0.37416,119420.0,119410.0,0.53911446]
[1753637503258,0.37416,119420.0,119410.0,0.21751281]
[1753637503517,0.37416,119420.0,119410.0,0.53911446]
[1753637503748,0.38244554,119420.0,119410.0,0.53911446]
[1753637506773,0.03080001,119430.0,119420.0,0.19259669]
[1753637506988,0.45733731,119430.0,119420.0,0.53909834]
[1753637508047,0.00206001,119430.0,119420.0,0.54202834]
[1753637508263,1e-08,119430.0,119420.0,0.54202834]
[1753637508477,1e-08,119430.0,119420.0,0.57422834]
[1753637508695,1e-08,119430.0,119420.0,0.59167736]
[1753637508916,1e-08,119430.0,119420.0,0.99775631]
[1753637509982,1e-08,119430.0,119420.0,0.67615466]
[1753637512419,1e-08,119430.0,119420.0,0.67915466]
[1753637512639,1e-08,119430.0,119420.0,1.00075631]
[1753637513559,1e-08,119430.0,119420.0,1.00275631]
[1753637514641,0.00304601,119450.0,119440.0,0.19256445]
[1753637514899,0.00304601,119450.0,119440.0,0.5161761]
[1753637515140,0.00304601,119450.0,119440.0,0.5423461]
[1753637516012,0.00504601,119450.0,119440.0,0.5423461]
[1753637516224,0.00504601,119450.0,119440.0,0.5394061]
[1753637516445,0.00504601,119450.0,119440.0,0.5423461]
[1753637517508,0.00496416,119450.0,119440.0,0.5423461]
[1753637518206,0.00296416,119450.0,119440.0,0.5423461]
[1753637518834,0.00296416,119450.0,119440.0,0.22074445]
[1753637519126,0.00296416,119450.0,119440.0,0.5423461]
[1753637520258,0.00496416,119450.0,119440.0,0.5423461]
[1753637521795,0.00296416,119450.0,119440.0,0.86394775]
[1753637522503,0.00296416,119450.0,119440.0,0.5423461]
[1753637524103,0.07077523,119450.0,119440.0,0.19256445]
[1753637524322,0.08751765,119450.0,119440.0,0.5141661]
[1753637524550,0.07914637,119450.0,119440.0,0.5141661]
[1753637524768,0.1138487,119450.0,119440.0,0.5141661]
[1753637524982,0.08873514,119450.0,119440.0,0.5141661]
[1753637525415,0.06240416,119450.0,119440.0,0.5141661]
[1753637526075,0.06240416,119450.0,119440.0,0.5373961]
[1753637527361,0.07077523,119450.0,119440.0,0.5141661]
[1753637527588,0.07914637,119450.0,119440.0,0.5141661]
[1753637528051,0.07077523,119450.0,119440.0,0.5141661]
[1753637528291,0.08873505,119450.0,119440.0,0.5141661]
[1753637528717,0.09710612,119450.0,119440.0,0.5141661]
[1753637528921,0.10547726,119450.0,119440.0,0.5141661]
[1753637529148,0.09710612,119450.0,119440.0,0.5141661]
[1753637529604,0.08873505,119450.0,119440.0,0.5141661]
[1753637529823,0.06240416,119450.0,119440.0,0.5141661]
[1753637530029,0.07077523,119450.0,119440.0,0.5141661]
[1753637530248,0.06240416,119450.0,119440.0,0.5141661]
[1753637530747,0.0707753,119450.0,119440.0,0.5141661]
[1753637530991,0.06240416,119450.0,119440.0,0.5141661]
[1753637531462,0.07077537,119450.0,119440.0,0.5141661]
[1753637531705,0.07952703,119450.0,119440.0,0.5141661]
[1753637531919,0.08789838,119450.0,119440.0,0.5141661]
[1753637532122,0.07115582,119450.0,119440.0,0.5141661]
[1753637532345,0.06240416,119450.0,119440.0,0.5141661]
[1753637533011,0.06240416,119450.0,119440.0,0.5373961]
[1753637533459,0.05935416,119450.0,119440.0,0.5373961]
[1753637535187,0.03626416,119450.0,119440.0,0.21579445]
[1753637535403,0.03626416,119450.0,119440.0,0.5373961]
[1753637535839,0.03626416,119450.0,119440.0,0.5394061]
[1753637536453,0.04501576,119450.0,119440.0,0.5394061]
[1753637538609,0.00296416,119450.0,119440.0,0.86394775]
[1753637538873,0.00296416,119450.0,119440.0,0.89614775]
[1753637540012,0.00296416,119450.0,119440.0,0.91359677]
[1753637540455,1e-08,119450.0,119440.0,0.99807407]
[1753637541542,1e-08,119450.0,119440.0,1.00007407]
[1753637542983,1e-08,119450.0,119440.0,1.00107407]
[1753637548268,1e-08,119450.0,119440.0,0.99907407]
[1753637548914,1e-08,119450.0,119440.0,1.12673807]
[1753637549134,1e-08,119450.0,119440.0,1.12573807]
[1753637549847,1e-08,119450.0,119440.0,0.99807407]
[1753637550487,1e-08,119450.0,119440.0,1.34291207]
[1753637551135,1e-08,119450.0,119440.0,1.68291207]
[1753637552482,1e-08,119450.0,119440.0,1.45825707]
[1753637552703,1e-08,119450.0,119440.0,1.33807407]
[1753637553142,1e-08,119450.0,119440.0,1.43917507]
[1753637553393,1e-08,119450.0,119440.0,1.61757407]
[1753637553859,1e-08,119450.0,119440.0,1.45422407]
[1753637557443,1e-08,119450.0,119440.0,1.47936507]
[1753637562004,0.02695001,119450.0,119440.0,0.64123342]
[1753637562189,0.06161001,119450.0,119440.0,0.5393071]
[1753637562890,0.06161001,119450.0,119440.0,0.5141661]
[1753637563624,0.06161001,119450.0,119440.0,0.5161661]
[1753637563877,0.06161001,119450.0,119440.0,0.5191661]
[1753637564141,0.06161001,119450.0,119440.0,0.19456445]
[1753637564405,0.06944509,119450.0,119440.0,0.5181661]
[1753637565612,0.06944509,119450.0,119440.0,0.19656445]
[1753637565844,0.06161001,119450.0,119440.0,0.5181661]
[1753637566071,0.06161001,119450.0,119440.0,0.5161661]
[1753637567252,0.06998122,119450.0,119440.0,0.5161661]
[1753637567481,0.06998122,119450.0,119440.0,0.5171661]
[1753637567762,0.07835257,119450.0,119440.0,0.19556445]
[1753637568008,0.10460403,119450.0,119440.0,0.5171661]
[1753637568253,0.08786147,119450.0,119440.0,0.5171661]
[1753637568803,0.09623261,119450.0,119440.0,0.5171661]
[1753637568992,0.08786147,119450.0,119440.0,0.5171661]
[1753637569168,0.06161001,119450.0,119440.0,0.5171661]
[1753637571676,0.06161001,119450.0,119440.0,0.17044809]
[1753637571892,0.16282987,119450.0,119440.0,0.51716638]
[1753637572119,0.06161001,119450.0,119440.0,0.52553836]
[1753637572337,0.03369001,119450.0,119440.0,0.55810027]
[1753637572547,0.06692122,119450.0,119440.0,0.55710027]
[1753637572780,0.08672413,119450.0,119440.0,0.53091027]
[1753637573029,0.11381294,119450.0,119440.0,0.53091027]
[1753637573221,0.10544138,119450.0,119440.0,0.53091027]
[1753637573478,0.0783525,119450.0,119440.0,0.53091027]
[1753637573876,0.06998122,119450.0,119440.0,0.53091027]
[1753637574089,0.07835257,119450.0,119440.0,0.53091027]
[1753637574772,0.08672406,119450.0,119440.0,0.53091027]
[1753637575691,0.09509562,119450.0,119440.0,0.53091027]
[1753637575922,0.0251186,119430.0,119420.0,0.22028484]
[1753637576143,0.05983797,119430.0,119420.0,0.525572]
[1753637576366,0.07839515,119430.0,119420.0,0.525572]
[1753637576601,0.08676797,119430.0,119420.0,0.525572]
[1753637576830,0.09514079,119430.0,119420.0,0.525572]
[1753637577025,0.07839515,119430.0,119420.0,0.525572]
[1753637577443,0.0867679,119430.0,119420.0,0.527572]
[1753637577664,0.0867679,119430.0,119420.0,0.552682]
[1753637577887,0.28802513,119430.0,119420.0,0.006]
[1753637578117,0.355757,119430.0,119420.0,0.006]
[1753637578797,0.355757,119430.0,119420.0,0.005]
[1753637579279,0.355757,119430.0,119420.0,0.003]
[1753637579930,0.67735865,119430.0,119420.0,0.003]
[1753637580145,0.355757,119430.0,119420.0,0.003]
[1753637580591,1.01735865,119430.0,119420.0,0.003]
[1753637580830,6.01735865,119430.0,119420.0,0.003]
[1753637581052,6.04215506,119430.0,119420.0,0.003]
[1753637581281,0.18423866,119410.0,119400.0,0.003]
[1753637581519,0.913833,119410.0,119400.0,0.003]
[1753637581781,1.0014703,119410.0,119400.0,0.003]
[1753637582010,6.0252403,119410.0,119400.0,0.003]
[1753637582991,5.70363865,119410.0,119400.0,0.003]
[1753637583252,0.70363865,119410.0,119400.0,0.003]
[1753637583971,1.0252403,119410.0,119400.0,0.003]
[1753637585421,1.0252403,119410.0,119400.0,0.00261548]
[1753637586604,0.7114126,119410.0,119400.0,0.00261548]
[1753637586901,1.03301425,119410.0,119400.0,0.00261548]
[1753637587367,0.7114126,119410.0,119400.0,0.00261548]
[1753637587617,0.70363865,119410.0,119400.0,0.00261548]
[1753637587859,0.29421039,119410.0,119400.0,0.5345915]
[1753637588088,0.10785124,119410.0,119400.0,0.55442113]
[1753637588356,0.00837338,119420.0,119410.0,0.19260189]
[1753637588608,0.10122385,119420.0,119410.0,0.51621354]
[1753637588861,0.13551906,119420.0,119410.0,0.54340354]
[1753637589112,0.14389258,119420.0,119410.0,0.22180189]
[1753637589364,0.13551906,119420.0,119410.0,0.22180189]
[1753637589655,0.15226617,119420.0,119410.0,0.21342795]
[1753637589870,0.20098703,119410.0,119400.0,0.21935491]
[1753637590090,0.38220481,119410.0,119400.0,0.00261548]
[1753637590308,0.38536481,119410.0,119400.0,0.00261548]
[1753637592967,0.38536481,119410.0,119400.0,0.17011966]
[1753637593196,0.37699045,119410.0,119400.0,0.17011966]
[1753637593421,0.19931846,119410.0,119400.0,0.20361941]
[1753637593664,0.18301846,119410.0,119400.0,0.22973941]
[1753637593889,0.0844773,119410.0,119400.0,0.54686867]
[1753637594107,0.09285131,119410.0,119400.0,0.54686867]
[1753637594821,0.0844773,119410.0,119400.0,0.54686867]
[1753637595468,0.0844773,119410.0,119400.0,0.56296867]
[1753637595694,0.05104176,119420.0,119410.0,0.19261281]
[1753637595937,0.46714568,119420.0,119410.0,0.19462281]
[1753637596212,0.4749249,119420.0,119410.0,0.22181281]
[1753637596424,0.48329821,119420.0,119410.0,0.22181281]
[1753637596660,0.50004518,119420.0,119410.0,0.22181281]
[1753637596896,0.6758956,119420.0,119410.0,0.22181281]
[1753637597124,0.6758956,119420.0,119410.0,0.2134388]
[1753637597344,0.66752229,119420.0,119410.0,0.22181295]
[1753637597578,0.67666532,119420.0,119410.0,0.17586458]
[1753637597793,0.02512308,119410.0,119400.0,0.21097971]
[1753637598023,0.09085811,119410.0,119400.0,0.2297392]
[1753637598239,0.08873811,119410.0,119400.0,0.2328192]
[1753637598474,0.08814325,119410.0,119400.0,0.2328192]
[1753637598689,0.09651726,119410.0,119400.0,0.2328192]
[1753637599153,0.08814325,119410.0,119400.0,0.2328192]
[1753637599370,0.07976931,119410.0,119400.0,0.2328192]
[1753637599559,0.08814325,119410.0,119400.0,0.2328192]
[1753637599909,0.0965174,119410.0,119400.0,0.2328192]
[1753637600130,0.07976931,119410.0,119400.0,0.2328192]
[1753637600354,0.08814318,119410.0,119400.0,0.2328192]
[1753637601073,0.07976931,119410.0,119400.0,0.2328192]
[1753637601306,0.00777922,119410.0,119400.0,0.57746846]
[1753637601812,0.00777922,119410.0,119400.0,0.2634192]
[1753637601992,0.00777922,119410.0,119400.0,0.57746846]
[1753637602694,0.00777922,119410.0,119400.0,0.2634192]
[1753637602908,0.00777922,119410.0,119400.0,0.57746846]
[1753637603557,0.00777922,119410.0,119400.0,0.2634192]
[1753637604455,0.00777922,119410.0,119400.0,0.2481192]
[1753637604911,0.00777922,119410.0,119400.0,0.57746846]
[1753637607606,0.00777922,119410.0,119400.0,0.2634192]
[1753637607842,0.00777922,119410.0,119400.0,0.57746846]
[1753637608978,0.00777922,119410.0,119400.0,0.2634192]
[1753637609234,0.00777922,119410.0,119400.0,0.57746846]
[1753637609982,0.00777922,119410.0,119400.0,0.2634192]
[1753637610233,0.00777922,119410.0,119400.0,0.57746846]
[1753637610943,0.00777922,119410.0,119400.0,0.58502267]
[1753637611432,0.00777922,119410.0,119400.0,0.90662614]
[1753637612343,0.00777922,119410.0,119400.0,0.92901885]
[1753637612583,0.00777922,119410.0,119400.0,1.00855246]
[1753637612812,0.09345391,119450.0,119440.0,0.19256445]
[1753637613045,0.18791268,119450.0,119440.0,0.19256445]
[1753637613270,0.19628431,119450.0,119440.0,0.19256452]
[1753637613493,0.39171824,119450.0,119440.0,0.17582042]
[1753637613759,0.39171824,119450.0,119420.0,0.18624182]
[1753637613760,0.01674557,119430.0,119420.0,0.18419921]
[1753637613961,0.00837387,119410.0,119400.0,0.22187458]
[1753637614205,0.05043196,119410.0,119400.0,0.19824435]
[1753637614429,0.07639307,119410.0,119400.0,0.19824435]
[1753637614659,0.04183899,119410.0,119400.0,0.19724435]
[1753637614877,0.05803121,119410.0,119400.0,0.22192435]
[1753637615117,0.04965713,119410.0,119400.0,0.22192435]
[1753637615363,0.05021307,119410.0,119400.0,0.22192435]
[1753637615591,0.05803121,119410.0,119400.0,0.22192435]
[1753637616284,0.03074932,119410.0,119400.0,0.55562886]
[1753637616508,0.00781814,119410.0,119400.0,0.57112886]
[1753637617407,0.02512007,119420.0,119410.0,0.19261281]
[1753637617670,0.11958362,119420.0,119410.0,0.19470281]
[1753637617903,0.11121017,119420.0,119410.0,0.21729281]
[1753637618622,0.10283679,119420.0,119410.0,0.21729281]
[1753637618837,0.14561266,119420.0,119410.0,0.21729281]
[1753637619085,0.14561259,119420.0,119410.0,0.21729281]
[1753637619578,0.00782625,119420.0,119410.0,0.56649732]
[1753637620078,0.37294429,119430.0,119420.0,0.19259669]
[1753637620317,0.45175534,119430.0,119420.0,0.19259669]
[1753637620562,0.49110669,119430.0,119420.0,0.19259669]
[1753637620803,0.50250972,119430.0,119420.0,0.19259669]
[1753637621055,0.58530604,119430.0,119420.0,0.19259669]
[1753637621307,0.57693301,119430.0,119420.0,0.19259669]
[1753637621812,0.74439512,119430.0,119420.0,0.19259669]
[1753637622059,0.57693301,119430.0,119420.0,0.19259669]
[1753637622303,0.56856005,119430.0,119420.0,0.19259669]
[1753637622552,0.09230569,119430.0,119420.0,0.5507812]
[1753637622793,0.0844773,119430.0,119420.0,0.5507812]
[1753637623282,0.11175555,119430.0,119420.0,0.19259669]
[1753637623527,0.11175555,119430.0,119420.0,0.19259676]
[1753637623528,0.31377069,119430.0,119420.0,0.19259676]
[1753637623776,0.40354111,119430.0,119420.0,0.18422345]
[1753637624021,0.38679582,119430.0,119420.0,0.17584993]
[1753637624297,0.37842286,119430.0,119420.0,0.17584993]
[1753637624778,0.37842286,119430.0,119420.0,0.18422359]
[1753637625298,0.37842286,119430.0,119420.0,0.19259718]
[1753637625552,0.00837387,119410.0,119400.0,0.19524421]
[1753637625782,0.03254711,119420.0,119410.0,0.18423866]
[1753637626025,0.15686527,119420.0,119410.0,0.20682873]
[1753637626260,0.3243414,119420.0,119410.0,0.17586451]
[1753637626545,0.3669214,119420.0,119410.0,0.16749015]
[1753637626776,0.01674851,119410.0,119400.0,0.20945887]
[1753637627011,0.01053408,119410.0,119400.0,0.21154887]
[1753637627250,0.04638892,119410.0,119400.0,0.21154887]
[1753637627487,0.04638892,119410.0,119400.0,0.21563887]
[1753637627958,0.05476307,119410.0,119400.0,0.21563887]
[1753637628201,0.05476307,119410.0,119400.0,0.21463887]
[1753637628417,0.05476279,119410.0,119400.0,0.21463887]
[1753637628626,0.04638871,119410.0,119400.0,0.21463887]
[1753637628855,0.05476279,119410.0,119400.0,0.21463887]
[1753637629345,0.06313701,119410.0,119400.0,0.21663887]
[1753637629596,0.01890788,119410.0,119400.0,0.21463887]
[1753637629816,0.12215816,119420.0,119410.0,0.19261281]
[1753637630067,0.06648788,119430.0,119420.0,0.19259669]
[1753637630281,0.27084526,119430.0,119420.0,0.19468669]
[1753637630508,0.27084526,119430.0,119420.0,0.20890338]
[1753637630725,0.27921836,119430.0,119420.0,0.21727683]
[1753637630948,0.27921836,119430.0,119420.0,0.22565021]
[1753637631168,0.10338315,119430.0,119420.0,0.23402352]
[1753637631388,0.14465689,119430.0,119420.0,0.23402352]
[1753637631602,0.32049203,119430.0,119420.0,0.23402352]
[1753637631788,0.32886513,119430.0,119420.0,0.23402352]
[1753637632992,0.09284991,119430.0,119420.0,0.23711352]
[1753637633257,0.27084512,119430.0,119410.0,0.20023824]
[1753637633470,0.26032716,119420.0,119410.0,0.20682497]
[1753637633686,0.26248716,119420.0,119410.0,0.21519912]
[1753637634117,0.28866716,119420.0,119410.0,0.19260912]
[1753637634538,0.33745009,119420.0,119410.0,0.19260912]
[1753637634962,0.34582361,119420.0,119410.0,0.2009832]
[1753637635179,0.35116741,119420.0,119410.0,0.2009832]
[1753637635398,0.32801741,119420.0,119410.0,0.2246632]
[1753637636462,0.32801741,119420.0,119410.0,0.54629864]
[1753637636689,0.33639079,119420.0,119410.0,0.54629864]
[1753637637575,0.33639079,119420.0,119410.0,0.2266832]
[1753637637785,0.33639079,119420.0,119410.0,0.55669265]
[1753637637786,0.16891466,119420.0,119410.0,0.55669265]
[1753637638453,0.33639079,119420.0,119410.0,0.55669265]
[1753637640013,0.33639079,119420.0,119410.0,0.54831864]
[1753637641135,0.33639079,119420.0,119410.0,0.21316497]
[1753637641370,0.1842388,119410.0,119400.0,0.32425092]
[1753637641601,0.35407962,119410.0,119400.0,0.00261548]
[1753637641836,0.37972962,119410.0,119400.0,0.00261548]
[1753637643241,1.04136506,119410.0,119400.0,0.00261548]
[1753637644865,6.04136506,119410.0,119400.0,0.00261548]
[1753637645100,6.04918669,119410.0,119400.0,0.00261548]
[1753637645316,6.04918669,119410.0,119400.0,1e-08]
[1753637645317,6.16663571,119410.0,119400.0,1e-08]
[1753637645539,6.11663571,119410.0,119400.0,1e-08]
[1753637646222,6.06663571,119410.0,119400.0,1e-08]
[1753637646446,6.04136506,119410.0,119400.0,1e-08]
[1753637646865,6.03406305,119410.0,119400.0,1e-08]
[1753637648039,5.71972962,119410.0,119400.0,1e-08]
[1753637648766,0.71972962,119410.0,119400.0,1e-08]
[1753637649227,1.03406305,119410.0,119400.0,1e-08]
[1753637649886,0.71972962,119410.0,119400.0,1e-08]
[1753637650343,1.16882962,119410.0,119400.0,1e-08]
[1753637651202,6.16882962,119410.0,119400.0,1e-08]
[1753637651447,6.55061207,119410.0,119400.0,1e-08]
[1753637651676,6.60841268,119410.0,119400.0,1e-08]
[1753637651913,6.19821949,119410.0,119400.0,1e-08]
[1753637652174,6.28641988,119410.0,119400.0,1e-08]
[1753637652393,6.31159088,119410.0,119400.0,1e-08]
[1753637652846,1.31159088,119410.0,119400.0,1e-08]
[1753637653068,6.29413099,119410.0,119400.0,1e-08]
[1753637653535,6.08755199,119390.0,119380.0,1e-08]
[1753637653763,6.33201713,119390.0,119380.0,1e-08]
[1753637654204,6.38284113,119390.0,119380.0,1e-08]
[1753637654419,6.40033474,119390.0,119380.0,1e-08]
[1753637655513,6.40233474,119390.0,119380.0,1e-08]
[1753637656021,6.40233474,119390.0,119380.0,0.00100001]
[1753637656237,6.37716074,119390.0,119380.0,0.00100001]
[1753637656456,6.40084074,119390.0,119380.0,0.00100001]
[1753637657104,6.42651913,119390.0,119380.0,0.00100001]
[1753637657569,6.39884074,119390.0,119380.0,0.00100001]
[1753637657793,6.37516074,119390.0,119380.0,0.00100001]
[1753637658012,6.37513942,119390.0,119380.0,0.00100001]
[1753637658884,6.37613942,119390.0,119380.0,0.00100001]
[1753637659129,1.37613942,119390.0,119380.0,0.00100001]
[1753637659376,6.37613942,119390.0,119380.0,0.00100001]
[1753637660691,6.36053905,119390.0,119380.0,0.00100001]
[1753637660921,6.37608675,119390.0,119380.0,0.00100001]
[1753637661150,1.37608675,119390.0,119380.0,0.00100001]
[1753637661372,0.21530041,119370.0,119360.0,0.02268001]
[1753637661579,0.38636501,119370.0,119360.0,0.02268001]
[1753637662450,0.40191289,119370.0,119360.0,0.02268001]
[1753637662667,0.40191289,119370.0,119360.0,0.02368001]
[1753637662904,0.42462289,119370.0,119360.0,0.001]
[1753637663130,0.42756289,119370.0,119360.0,0.001]
[1753637663353,0.40291289,119370.0,119360.0,0.001]
[1753637663581,0.41068774,119370.0,119360.0,0.0267]
[1753637663852,0.39498774,119370.0,119360.0,0.0267]
[1753637666067,0.37968774,119370.0,119360.0,0.02989]
[1753637666504,0.37757774,119370.0,119360.0,0.02989]
[1753637669597,0.43704774,119370.0,119360.0,0.001]
[1753637670719,5.95722692,119370.0,119360.0,0.001]
[1753637671189,5.96160378,119370.0,119360.0,0.001]
[1753637671405,5.95322661,119370.0,119360.0,0.001]
[1753637671611,5.96160378,119370.0,119360.0,0.001]
[1753637672053,5.64727035,119370.0,119360.0,0.001]
[1753637672512,5.6473359,119370.0,119360.0,0.001]
[1753637673157,5.5707059,119370.0,119360.0,0.001]
[1753637673380,0.3034173,119370.0,119360.0,0.04551]
[1753637673607,0.29318794,119370.0,119360.0,0.06161]
[1753637673832,0.29318794,119370.0,119360.0,0.56025942]
[1753637673833,0.13401841,119370.0,119360.0,0.56025942]
[1753637674080,0.61972126,119370.0,119360.0,0.04232]
[1753637674344,6.21344638,119370.0,119360.0,0.001]
[1753637674662,0.52433129,119350.0,119340.0,0.04552]
[1753637674884,0.52433129,119350.0,119340.0,0.04751]
[1753637674885,0.63221882,119350.0,119340.0,0.04751]
[1753637675103,0.63221882,119350.0,119340.0,0.03111]
[1753637675555,0.63435882,119350.0,119340.0,0.02792]
[1753637675782,0.65774882,119350.0,119340.0,0.003]
[1753637676007,0.74222612,119350.0,119340.0,0.003]
[1753637676456,0.71883612,119350.0,119340.0,0.02792]
[1753637676696,0.71883612,119350.0,119340.0,0.02992]
[1753637676912,0.71883612,119350.0,119340.0,0.03311]
[1753637677131,0.71883612,119350.0,119340.0,0.03411]
[1753637677357,0.72717512,119350.0,119340.0,0.03411]
[1753637677607,0.72717512,119350.0,119340.0,0.03092]
[1753637678660,0.72717512,119350.0,119340.0,0.02992]
[1753637679052,0.75056512,119350.0,119340.0,0.003]
[1753637679352,0.75966652,119350.0,119340.0,0.004]
[1753637679575,0.84146652,119350.0,119340.0,0.004]
[1753637679795,5.84146652,119350.0,119340.0,0.004]
[1753637680694,6.20876652,119350.0,119340.0,0.003]
[1753637680909,6.20876652,119350.0,119340.0,0.03111]
[1753637680910,1.18213652,119350.0,119340.0,0.03111]
[1753637681129,6.18313652,119350.0,119340.0,0.03111]
[1753637681350,6.18313652,119350.0,119340.0,0.02792]
[1753637681997,6.18413652,119350.0,119340.0,0.02792]
[1753637682898,6.20752652,119350.0,119340.0,0.003]
[1753637683366,6.5644945,119350.0,119340.0,0.003]
[1753637684026,1.24236652,119350.0,119340.0,0.003]
[1753637684236,1.5644945,119350.0,119340.0,0.003]
[1753637684454,6.5644945,119350.0,119340.0,0.003]
[1753637684686,6.24236652,119350.0,119340.0,0.003]
[1753637684908,6.22736652,119350.0,119340.0,0.003]
[1753637685136,6.5062645,119350.0,119340.0,0.003]
[1753637685375,6.5293545,119350.0,119340.0,0.003]
[1753637685600,6.55278638,119350.0,119340.0,0.003]
[1753637685833,6.55604711,119350.0,119340.0,0.003]
[1753637686079,6.58764711,119350.0,119340.0,0.003]
[1753637687013,6.80565359,119350.0,119340.0,0.003]
[1753637687254,6.80565915,119350.0,119340.0,0.003]
[1753637688375,6.80565143,119350.0,119340.0,0.003]
[1753637688598,6.82310045,119350.0,119340.0,0.003]
[1753637689048,6.80947709,119350.0,119340.0,0.003]
[1753637689266,6.48734911,119350.0,119340.0,0.003]
[1753637689499,6.80947709,119350.0,119340.0,0.003]
[1753637689727,6.80747709,119350.0,119340.0,0.003]
[1753637689987,6.80947709,119350.0,119340.0,0.003]
[1753637690218,6.81147709,119350.0,119340.0,0.003]
[1753637690927,1.81147709,119350.0,119340.0,0.003]
[1753637691160,6.80947709,119350.0,119340.0,0.003]
[1753637691644,6.36237118,119350.0,119340.0,0.003]
[1753637692741,6.34672262,119350.0,119340.0,0.003]
[1753637692943,1.3623498,119350.0,119340.0,0.003]
[1753637693192,6.3623498,119350.0,119340.0,0.003]
[1753637693432,6.3623484,119350.0,119340.0,0.003]
[1753637694769,6.4123484,119350.0,119340.0,1e-08]
[1753637694990,6.41233762,119350.0,119340.0,1e-08]
[1753637695222,6.65053762,119350.0,119340.0,1e-08]
[1753637695445,6.66852584,119350.0,119320.0,0.0034]
[1753637695699,6.18051649,119330.0,119320.0,1e-08]
[1753637695935,6.29037895,119330.0,119320.0,1e-08]
[1753637696178,6.31811895,119330.0,119320.0,1e-08]
[1753637696455,6.34330395,119330.0,119320.0,1e-08]
[1753637696909,6.33589984,119330.0,119320.0,1e-08]
[1753637697531,6.02115852,119330.0,119320.0,1e-08]
[1753637697968,6.02115852,119330.0,119320.0,0.00100001]
[1753637698594,6.33589984,119330.0,119320.0,0.00100001]
[1753637699064,6.36152537,119330.0,119320.0,0.00100001]
[1753637699283,6.36152537,119330.0,119320.0,1e-08]
[1753637699504,6.36252537,119330.0,119320.0,1e-08]
[1753637701196,1.36252537,119330.0,119320.0,1e-08]
[1753637701397,6.04778405,119330.0,119320.0,1e-08]
[1753637701606,6.34689178,119330.0,119320.0,1e-08]
[1753637701856,6.03215046,119330.0,119320.0,1e-08]
[1753637702074,6.01850263,119330.0,119320.0,1e-08]
[1753637702286,6.0243517,119330.0,119320.0,1e-08]
[1753637702527,6.02291978,119330.0,119320.0,1e-08]
[1753637702765,5.91063103,119330.0,119320.0,0.05918001]
[1753637702986,5.90478173,119330.0,119320.0,0.05918001]
[1753637703418,5.88918361,119330.0,119320.0,0.05918001]
[1753637705754,0.37399861,119330.0,119320.0,0.05918001]
[1753637705968,0.71399861,119330.0,119320.0,0.05918001]
[1753637707215,0.71399861,119330.0,119320.0,1e-08]
[1753637707216,6.08652993,119330.0,119320.0,1e-08]
[1753637707434,6.26301959,119330.0,119320.0,1e-08]
[1753637707651,5.92155513,119330.0,119320.0,1e-08]